fUST/lending_fUST_20241112
["ID","MTS","AMOUNT","RATE_DAILY","PERIOD"]
[342071864,1731405039239,-151.0,0.0002535,7]
[342071865,1731405039248,-151.0,0.0002535,7]
[342071866,1731405039258,-202.273734,0.0002535,7]
[342071868,1731405039267,-202.273734,0.0002535,7]
[342071870,1731405039277,-151.0,0.0002535,7]
[342071872,1731405039286,-200.58907,0.0002535,7]
[342071874,1731405039296,-197.628316,0.0002535,7]
[342071876,1731405039305,-197.628316,0.0002535,7]
[342071878,1731405039314,-197.628316,0.0002535,7]
[342071880,1731405039324,-197.628316,0.0002535,7]
[342071882,1731405039333,-206.210692,0.0002535,7]
[342071884,1731405039342,-206.210692,0.0002535,7]
[342071886,1731405039352,-151.0,0.0002535,7]
[342071888,1731405039361,-271.483156,0.0002535,7]
[342071890,1731405039371,-2767.901636,0.0002535,7]
[342071892,1731405039380,-2767.901636,0.0002535,7]
[342071894,1731405039390,-650.98999,0.0002535,7]
[342071896,1731405039398,-650.98999,0.0002535,7]
[342071898,1731405039408,-2798.43,0.0002535,2]
[342071900,1731405039417,-196.236439,0.00025351,7]
[342071902,1731405039426,-151.389558,0.00025351,7]
[342071904,1731405039436,-151.0,0.00025351,7]
[342071906,1731405039445,-151.0,0.00025351,7]
[342071908,1731405039454,-151.0,0.00025351,7]
[342071910,1731405039468,-151.0,0.00025351,7]
[342071912,1731405039478,-202.273734,0.00025351,7]
[342071914,1731405039487,-197.628316,0.00025351,7]
[342071916,1731405039496,-197.628316,0.00025351,7]
[342071918,1731405039505,-151.0,0.00025352,7]
[342071920,1731405039515,-151.0,0.00025352,7]
[342071921,1731405039524,-151.0,0.00025352,7]
[342071922,1731405039533,-155.597955,0.00025352,7]
[342071923,1731405039543,-151.0,0.00025352,7]
[342071924,1731405039552,-227.905254,0.00025352,7]
[342071925,1731405039561,-227.905254,0.00025352,7]
[342071926,1731405039570,-151.0,0.00025353,7]
[342071927,1731405039580,-151.0,0.00025353,7]
[342071928,1731405039590,-151.0,0.00025354,2]
[342071929,1731405039600,-151.0,0.00025363,7]
[342071930,1731405039614,-151.0,0.00025363,7]
[342071931,1731405039624,-202.273734,0.00025363,7]
[342071932,1731405039634,-151.935743,0.00025363,7]
[342071933,1731405039643,-197.628316,0.00025363,7]
[342071934,1731405039652,-197.628316,0.00025363,7]
[342071935,1731405039661,-151.0,0.00025363,7]
[342071936,1731405039671,-2798.43,0.00025363,2]
[342071937,1731405039680,-500.0,0.00025364,2]
[342071938,1731405039690,-151.0,0.00025364,7]
[342071939,1731405039699,-501.91111301,0.00025364,2]
[342071940,1731405039713,-536.99807311,0.00025364,2]
[342071941,1731405039722,-373.25265966,0.00025364,2]
[342071942,1731405039732,-151.0,0.00025364,2]
[342071943,1731405039741,-521.97492874,0.00025364,2]
[342071944,1731405039754,-501.81697866,0.00025364,2]
[342071945,1731405039763,-500.0,0.00025364,2]
[342071946,1731405039773,-537.5814287,0.00025364,2]
[342071947,1731405039783,-500.0,0.00025364,2]
[342071948,1731405039794,-603.3899854,0.00025364,2]
[342071949,1731405039804,-504.42817943,0.00025364,2]
[342071950,1731405039813,-151.0,0.00025364,7]
[342071951,1731405039823,-549.789739,0.00025364,2]
[342071952,1731405039834,-151.0,0.00025364,7]
[342071953,1731405039844,-151.0,0.00025364,7]
[342071954,1731405039854,-192.816121,0.00025364,7]
[342071955,1731405039864,-151.0,0.00025364,7]
[342071956,1731405039874,-151.0,0.00025364,7]
[342071957,1731405039883,-206.210692,0.00025364,7]
[342071958,1731405039893,-206.210692,0.00025364,7]
[342071959,1731405039902,-155.597955,0.00025364,7]
[342071960,1731405039912,-2767.901636,0.00025364,7]
[342071961,1731405039922,-2767.901636,0.00025364,7]
[342071962,1731405039931,-151.0,0.00025364,7]
[342071963,1731405039940,-650.98999,0.00025364,7]
[342071964,1731405039950,-650.98999,0.00025364,7]
[342071965,1731405039965,-227.905254,0.00025364,7]
[342071966,1731405039979,-227.905256,0.00025364,7]
[342071967,1731405039988,-151.0,0.00025365,7]
[342071968,1731405039998,-151.0,0.00025365,2]
[342071969,1731405040008,-151.0,0.00025365,2]
[342071970,1731405040018,-151.0,0.00025365,7]
[342071971,1731405040027,-151.0,0.00025365,7]
[342071972,1731405040036,-202.273734,0.00025365,7]
[342071973,1731405040046,-151.0,0.00025365,7]
[342071974,1731405040056,-197.628316,0.00025365,7]
[342071975,1731405040066,-197.628316,0.00025365,7]
[342071976,1731405040076,-299.530206,0.00025365,7]
[342071977,1731405040085,-206.210692,0.00025365,7]
[342071978,1731405040095,-206.210692,0.00025365,7]
[342071979,1731405040105,-151.0,0.00025366,7]
[342071980,1731405040115,-1065.69604606,0.00025415,2]
[342071981,1731405040126,-500.0,0.00025591,2]
[342071982,1731405040136,-500.0,0.00025591,2]
[342071983,1731405040146,-500.0,0.00025591,2]
[342071984,1731405040156,-500.0,0.00025591,2]
[342071985,1731405040165,-1723.73,0.00025591,2]
[342071986,1731405040175,-500.0,0.00025591,2]
[342071987,1731405040185,-500.0,0.00025591,2]
[342071988,1731405040195,-171.74153363,0.00025591,2]
[342071990,1731405040204,-500.0,0.00025591,2]
[342071991,1731405040220,-3661.9,0.00025591,2]
[342071992,1731405040230,-500.0,0.00025591,2]
[342071993,1731405040239,-500.0,0.00025591,2]
[342071994,1731405040249,-500.0,0.00025599,2]
[342071995,1731405040259,-500.0,0.00025599,2]
[342071997,1731405040269,-500.0,0.00025599,2]
[342072000,1731405040279,-500.0,0.00025599,2]
[342072003,1731405040289,-2798.43,0.00025601,2]
[342072005,1731405040299,-2798.43,0.00025601,2]
[342072007,1731405040308,-2798.43,0.00025601,2]
[342072009,1731405040318,-2798.43,0.00025601,2]
[342072011,1731405040329,-2798.45825463,0.00025601,2]
[342072012,1731405040338,-500.0,0.00025602,2]
[342072013,1731405040348,-500.0,0.00025602,2]
[342072015,1731405040357,-500.0,0.00025602,2]
[342072017,1731405040367,-500.0,0.00025602,2]
[342072019,1731405040377,-500.0,0.00025602,2]
[342072020,1731405040386,-500.0,0.00025602,2]
[342072021,1731405040395,-237.11538515,0.00025602,2]
[342072022,1731405040405,-500.0,0.00025602,2]
[342072023,1731405040414,-500.0,0.00025602,2]
[342072024,1731405040424,-500.0,0.00025602,2]
[342072025,1731405040433,-380.5,0.00025602,2]
[342072026,1731405040442,-500.0,0.00025602,2]
[342072027,1731405040452,-500.0,0.00025602,2]
[342072028,1731405040467,-500.0,0.00025602,2]
[342072029,1731405040476,-500.0,0.00025602,2]
[342072030,1731405040486,-500.0,0.00025602,2]
[342072031,1731405040495,-500.0,0.00025602,2]
[342072032,1731405040505,-500.0,0.00025602,2]
[342072033,1731405040514,-500.0,0.00025602,2]
[342072034,1731405040523,-1030.17,0.00025602,2]
[342072035,1731405040533,-500.0,0.00025602,2]
[342072036,1731405040542,-500.0,0.00025602,2]
[342072037,1731405040551,-180.62239355,0.00025602,2]
[342072039,1731405040561,-500.0,0.00025602,2]
[342072041,1731405040571,-500.0,0.00025602,2]
[342072042,1731405040581,-500.0,0.00025602,2]
[342072043,1731405040591,-500.0,0.00025602,2]
[342072044,1731405040623,-500.0,0.00025602,2]
[342072045,1731405040634,-500.0,0.00025602,2]
[342072046,1731405040644,-500.0,0.00025602,2]
[342072047,1731405040654,-500.0,0.00025602,2]
[342072048,1731405040664,-500.0,0.00025602,2]
[342072050,1731405040674,-500.0,0.00025602,2]
[342072051,1731405040683,-500.0,0.00025602,2]
[342072052,1731405040693,-500.0,0.00025603,2]
[342072053,1731405040703,-500.0,0.00025603,2]
[342072054,1731405040716,-500.0,0.00025603,2]
[342072055,1731405040725,-500.0,0.00025603,2]
[342072056,1731405040735,-2767.901636,0.00025603,7]
[342072057,1731405040745,-2767.901636,0.00025603,7]
[342072058,1731405040754,-500.0,0.00025603,2]
[342072059,1731405040767,-650.98999,0.00025603,7]
[342072060,1731405040777,-650.98999,0.00025603,7]
[342072061,1731405040786,-525.69,0.00025603,2]
[342072062,1731405040795,-500.0,0.00025603,2]
[342072063,1731405040806,-151.0,0.00025614,7]
[342072064,1731405040816,-151.0,0.00025614,7]
[342072065,1731405040825,-155.597955,0.00025614,7]
[342072066,1731405040835,-500.0,0.00025616,2]
[342072067,1731405040846,-571.4276228,0.00025616,2]
[342072068,1731405040856,-500.0,0.00025616,2]
[342072069,1731405040865,-151.0,0.00025616,7]
[342072070,1731405040875,-500.0,0.00025616,2]
[342072071,1731405040884,-500.0,0.00025616,2]
[342072072,1731405040893,-500.0,0.00025616,2]
[342072073,1731405040903,-500.0,0.00025616,2]
[342072074,1731405040912,-500.0,0.00025616,2]
[342072075,1731405040921,-525.25,0.00025616,2]
[342072076,1731405040931,-349.21416665,0.00025616,2]
[342072077,1731405040939,-500.0,0.00025616,2]
[342072078,1731405040948,-500.0,0.00025616,2]
[342072079,1731405040962,-500.0,0.00025616,2]
[342072080,1731405040971,-500.0,0.00025616,2]
[342072081,1731405040980,-500.0,0.00025616,2]
[342072082,1731405040989,-500.0,0.00025616,2]
[342072083,1731405040999,-500.0,0.00025616,2]
[342072084,1731405041008,-500.0,0.00025616,2]
[342072085,1731405041017,-536.013328,0.00025616,2]
[342072086,1731405041027,-500.0,0.00025616,2]
[342072087,1731405041036,-500.0,0.00025616,2]
[342072088,1731405041045,-272.89973007,0.00025616,2]
[342072089,1731405041054,-151.0,0.00025616,7]
[342072090,1731405041063,-1096.48,0.00025616,2]
[342072091,1731405041072,-500.0,0.00025616,2]
[342072092,1731405041082,-500.0,0.00025616,2]
[342072093,1731405041092,-185.6113636,0.00025616,2]
[342072094,1731405041101,-500.0,0.00025616,2]
[342072095,1731405041111,-560.32,0.00025616,15]
[342072096,1731405041121,-164.97762629,0.00025616,2]
[342072097,1731405041131,-206.210692,0.00025616,7]
[342072098,1731405041140,-206.210692,0.00025616,7]
[342072099,1731405041150,-500.0,0.00025616,2]
[342072100,1731405041160,-500.0,0.00025616,2]
[342072101,1731405041170,-500.0,0.00025616,2]
[342072102,1731405041179,-500.0,0.00025616,2]
[342072103,1731405041189,-500.0,0.00025616,2]
[342072104,1731405041198,-500.0,0.00025616,2]
[342072105,1731405041211,-500.0,0.00025616,2]
[342072106,1731405041221,-2767.901636,0.00025616,7]
[342072107,1731405041231,-2767.901632,0.00025616,7]
[342072108,1731405041241,-500.0,0.00025616,2]
[342072109,1731405041250,-650.98999,0.00025616,7]
[342072110,1731405041260,-650.98999778,0.00025616,7]
[342072111,1731405041270,-553.04956814,0.00025616,2]
[342072112,1731405041279,-151.0,0.00025625,7]
[342072113,1731405041289,-151.0,0.00025625,7]
[342072114,1731405041299,-151.0,0.00025625,7]
[342072115,1731405041309,-155.597955,0.00025625,7]
[342072116,1731405041319,-155.597955,0.00025625,7]
[342072117,1731405041328,-151.0,0.00025626,2]
[342072118,1731405041338,-202.273734,0.00025626,7]
[342072119,1731405041348,-202.273734,0.00025626,7]
[342072120,1731405041358,-197.628316,0.00025626,7]
[342072121,1731405041368,-197.628316,0.00025626,7]
[342072122,1731405041377,-151.0,0.00025637,7]
[342072123,1731405041387,-151.0,0.00025638,7]
[342072124,1731405041397,-151.0,0.00025638,2]
[342072125,1731405041407,-151.0,0.00025639,7]
[342072126,1731405041418,-151.0,0.00025639,7]
[342072127,1731405041427,-151.0,0.00025639,7]
[342072128,1731405041438,-202.273734,0.00025639,7]
[342072129,1731405041448,-202.273734,0.00025639,7]
[342072130,1731405041461,-151.0,0.00025639,7]
[342072131,1731405041471,-151.0,0.00025639,7]
[342072132,1731405041482,-197.628316,0.00025639,7]
[342072133,1731405041492,-197.628316,0.00025639,7]
[342072134,1731405041502,-206.210692,0.00025639,7]
[342072135,1731405041511,-206.210692,0.00025639,7]
[342072136,1731405041520,-155.597955,0.00025639,7]
[342072137,1731405041530,-155.597951,0.00025639,7]
[342072138,1731405041540,-151.0,0.0002564,7]
[342072139,1731405041550,-218.96563,0.0002564,2]
[342072140,1731405041559,-151.0,0.0002564,7]
[342072141,1731405041568,-500.0,0.00025673,2]
[342072142,1731405041578,-500.0,0.00025673,2]
[342072143,1731405041588,-1343.47683898,0.00025833,2]
[342072144,1731405041598,-500.0,0.00025865,2]
[342072145,1731405041608,-517.52,0.00025865,2]
[342072146,1731405041618,-500.0,0.00025865,2]
[342072147,1731405041629,-1723.73,0.00025865,2]
[342072148,1731405041639,-500.0,0.00025865,2]
[342072149,1731405041648,-500.0,0.00025865,2]
[342072150,1731405041658,-3661.9,0.00025865,2]
[342072151,1731405041669,-500.0,0.00025865,2]
[342072152,1731405041679,-500.0,0.00025873,2]
[342072153,1731405041689,-500.0,0.00025873,2]
[342072154,1731405041699,-500.0,0.00025873,2]
[342072155,1731405041714,-500.0,0.00025873,2]
[342072156,1731405041724,-500.0,0.00025873,2]
[342072157,1731405041734,-500.0,0.00025876,2]
[342072158,1731405041745,-500.0,0.00025876,2]
[342072159,1731405041758,-500.0,0.00025876,2]
[342072160,1731405041768,-500.0,0.00025876,2]
[342072161,1731405041778,-334.97364077,0.00025876,2]
[342072162,1731405041788,-500.0,0.00025876,2]
[342072163,1731405041798,-500.0,0.00025876,2]
[342072164,1731405041808,-500.0,0.00025876,2]
[342072165,1731405041818,-500.0,0.00025876,2]
[342072166,1731405041828,-500.0,0.00025876,2]
[342072167,1731405041840,-500.0,0.00025876,2]
[342072168,1731405041851,-500.0,0.00025876,2]
[342072169,1731405041860,-500.0,0.00025876,2]
[342072170,1731405041870,-500.0,0.00025876,2]
[342072171,1731405041880,-500.0,0.00025876,2]
[342072172,1731405041889,-500.0,0.00025876,2]
[342072173,1731405041899,-500.0,0.00025876,2]
[342072174,1731405041909,-1030.17,0.00025876,2]
[342072175,1731405041919,-500.0,0.00025876,2]
[342072176,1731405041929,-500.0,0.00025876,2]
[342072177,1731405041940,-500.0,0.00025876,2]
[342072178,1731405041949,-500.0,0.00025876,2]
[342072179,1731405041962,-500.0,0.00025876,2]
[342072180,1731405041972,-500.0,0.00025876,2]
[342072181,1731405041981,-500.0,0.00025876,2]
[342072182,1731405041992,-500.0,0.00025876,2]
[342072183,1731405042002,-500.0,0.00025876,2]
[342072184,1731405042012,-500.0,0.00025876,2]
[342072185,1731405042021,-500.0,0.00025876,2]
[342072186,1731405042031,-500.0,0.00025876,2]
[342072187,1731405042040,-500.0,0.00025876,2]
[342072188,1731405042050,-400.05696859,0.00025877,2]
[342072189,1731405042060,-500.0,0.00025877,2]
[342072190,1731405042069,-500.0,0.00025877,2]
[342072191,1731405042079,-500.0,0.00025877,2]
[342072192,1731405042088,-525.69,0.00025877,2]
[342072193,1731405042098,-500.0,0.00025877,2]
[342072194,1731405042107,-151.0,0.00025888,7]
[342072195,1731405042117,-206.210692,0.00025888,7]
[342072196,1731405042127,-206.210692,0.00025888,7]
[342072197,1731405042136,-151.0,0.00025889,7]
[342072198,1731405042146,-151.0,0.00025889,7]
[342072199,1731405042156,-500.0,0.0002589,2]
[342072200,1731405042166,-500.0,0.0002589,2]
[342072201,1731405042175,-500.0,0.0002589,2]
[342072202,1731405042185,-500.0,0.0002589,2]
[342072203,1731405042194,-500.0,0.0002589,2]
[342072204,1731405042203,-500.0,0.0002589,2]
[342072205,1731405042218,-525.25,0.0002589,2]
[342072206,1731405042228,-500.0,0.0002589,2]
[342072207,1731405042237,-500.0,0.0002589,2]
[342072208,1731405042247,-500.0,0.0002589,2]
[342072209,1731405042256,-500.0,0.0002589,2]
[342072210,1731405042266,-500.0,0.0002589,2]
[342072211,1731405042275,-500.0,0.0002589,2]
[342072212,1731405042285,-500.0,0.0002589,2]
[342072213,1731405042294,-500.0,0.0002589,2]
[342072214,1731405042304,-500.0,0.0002589,2]
[342072215,1731405042313,-1096.48,0.0002589,2]
[342072216,1731405042323,-500.0,0.0002589,2]
[342072217,1731405042332,-500.0,0.0002589,2]
[342072218,1731405042342,-500.0,0.0002589,2]
[342072219,1731405042352,-560.32,0.0002589,15]
[342072220,1731405042361,-500.0,0.0002589,2]
[342072221,1731405042371,-544.75548948,0.0002589,2]
[342072222,1731405042380,-500.0,0.0002589,2]
[342072223,1731405042391,-500.0,0.0002589,2]
[342072224,1731405042400,-500.0,0.0002589,2]
[342072225,1731405042410,-151.0,0.00025891,7]
[342072226,1731405042420,-202.273734,0.000259,7]
[342072227,1731405042430,-202.273734,0.000259,7]
[342072228,1731405042440,-197.628316,0.000259,7]
[342072229,1731405042450,-197.628316,0.000259,7]
[342072230,1731405042461,-226.961988,0.00025901,7]
[342072231,1731405042470,-151.0,0.00025911,7]
[342072232,1731405042480,-154.348036,0.00025911,7]
[342072233,1731405042490,-151.0,0.00025911,7]
[342072234,1731405042500,-206.210692,0.00025911,7]
[342072235,1731405042509,-206.210702,0.00025911,7]
[342072236,1731405042520,-151.0,0.00025912,7]
[342072237,1731405042530,-151.530765,0.00025912,7]
[342072238,1731405042540,-151.0,0.00025912,7]
[342072239,1731405042550,-202.273734,0.00025912,7]
[342072240,1731405042560,-202.273734,0.00025912,7]
[342072241,1731405042569,-197.628316,0.00025912,7]
[342072242,1731405042579,-197.628316,0.00025912,7]
[342072243,1731405042588,-151.0,0.00025913,7]
[342072244,1731405042598,-151.0,0.00025913,7]
[342072245,1731405042607,-151.0,0.00025913,7]
[342072246,1731405042617,-151.0,0.00025913,7]
[342072247,1731405042626,-151.0,0.00025913,7]
[342072248,1731405042636,-151.0,0.00025913,7]
[342072249,1731405042646,-151.0,0.00025913,7]
[342072250,1731405042656,-151.0,0.00025913,7]
[342072251,1731405042666,-157.627231,0.00025915,7]
[342072252,1731405042676,-151.0,0.00025915,7]
[342072253,1731405042686,-151.0,0.00025915,7]
[342072254,1731405042696,-202.273734,0.00025915,7]
[342072255,1731405042706,-202.273742,0.00025915,7]
[342072256,1731405042719,-197.628316,0.00025915,7]
[342072257,1731405042729,-197.62831,0.00025915,7]
[342072258,1731405042739,-5048.73649767,0.00025963,2]
[342072259,1731405042750,-151.0,0.00025994,7]
[342072260,1731405042761,-806.790024,0.00026,20]
[342072261,1731405042772,-735.1221592,0.00026051,2]
[342072262,1731405042782,-500.0,0.00026139,2]
[342072263,1731405042792,-500.0,0.00026139,2]
[342072264,1731405042801,-1723.73,0.00026139,2]
[342072265,1731405042813,-500.0,0.00026139,2]
[342072266,1731405042823,-181.71370388,0.00026139,2]
[342072267,1731405042834,-3661.9,0.00026139,2]
[342072268,1731405042844,-500.0,0.00026139,2]
[342072269,1731405042854,-500.0,0.00026147,2]
[342072270,1731405042864,-239.38164527,0.00026147,2]
[342072271,1731405042873,-179.26882757,0.00026147,2]
[342072272,1731405042883,-521.58,0.0002615,2]
[342072273,1731405042893,-500.0,0.0002615,2]
[342072274,1731405042903,-500.0,0.0002615,2]
[342072275,1731405042913,-500.0,0.0002615,2]
[342072276,1731405042923,-500.0,0.0002615,2]
[342072277,1731405042934,-500.0,0.0002615,2]
[342072278,1731405042944,-500.0,0.0002615,2]
[342072279,1731405042954,-405.82,0.0002615,2]
[342072281,1731405042969,-500.0,0.0002615,2]
[342072282,1731405042979,-500.0,0.0002615,2]
[342072284,1731405042989,-500.0,0.0002615,2]
[342072285,1731405043000,-1030.17,0.0002615,2]
[342072286,1731405043010,-500.0,0.0002615,2]
[342072287,1731405043020,-80.22302112,0.0002615,2]
[342072288,1731405043110,-419.77697888,0.0002615,2]
[342072289,1731405043120,-500.0,0.0002615,2]
[342072290,1731405043131,-500.0,0.0002615,2]
[342072291,1731405043142,-500.0,0.0002615,2]
[342072293,1731405043241,-500.0,0.0002615,2]
[342072294,1731405043251,-500.0,0.0002615,2]
[342072295,1731405043261,-500.0,0.0002615,2]
[342072296,1731405043271,-500.0,0.0002615,2]
[342072297,1731405043280,-500.0,0.0002615,2]
[342072298,1731405043290,-500.0,0.0002615,2]
[342072299,1731405043300,-502.54,0.00026151,2]
[342072300,1731405043309,-500.0,0.00026151,2]
[342072301,1731405043319,-500.0,0.00026151,2]
[342072302,1731405043329,-525.69,0.00026151,2]
[342072303,1731405043339,-500.0,0.00026151,2]
[342072304,1731405043348,-500.0,0.00026164,2]
[342072305,1731405043358,-500.0,0.00026164,2]
[342072306,1731405043367,-500.0,0.00026164,2]
[342072307,1731405043377,-500.0,0.00026164,2]
[342072308,1731405043386,-500.0,0.00026164,2]
[342072309,1731405043396,-556.82,0.00026164,2]
[342072310,1731405043405,-525.25,0.00026164,2]
[342072311,1731405043415,-500.0,0.00026164,2]
[342072312,1731405043424,-500.0,0.00026164,2]
[342072313,1731405043434,-500.0,0.00026164,2]
[342072314,1731405043444,-500.0,0.00026164,2]
[342072315,1731405043454,-500.0,0.00026164,2]
[342072316,1731405043472,-500.0,0.00026164,2]
[342072317,1731405043481,-500.0,0.00026164,2]
[342072318,1731405043491,-500.0,0.00026164,2]
[342072319,1731405043501,-1096.48,0.00026164,2]
[342072320,1731405043511,-500.0,0.00026164,2]
[342072321,1731405043520,-536.89,0.00026164,2]
[342072322,1731405043529,-500.0,0.00026164,2]
[342072323,1731405043539,-560.32,0.00026164,15]
[342072324,1731405043549,-500.0,0.00026164,2]
[342072325,1731405043558,-500.0,0.00026164,2]
[342072326,1731405043568,-500.0,0.00026164,2]
[342072327,1731405043577,-192.531006,0.00026176,7]
[342072328,1731405043587,-151.0,0.00026186,7]
[342072329,1731405043597,-151.0,0.00026187,7]
[342072330,1731405043607,-151.0,0.00026189,7]
[342072331,1731405043617,-450.21418745,0.00026221,2]
[342072332,1731405043627,-500.0,0.00026221,2]
[342072333,1731405043637,-660.0,0.00026384,2]
[342072334,1731405043646,-500.0,0.00026413,2]
[342072336,1731405043656,-500.0,0.00026413,2]
[342072337,1731405043667,-1723.73,0.00026413,2]
[342072338,1731405043677,-500.0,0.00026413,2]
[342072339,1731405043686,-3661.9,0.00026413,2]
[342072340,1731405043695,-500.0,0.00026413,2]
[342072341,1731405043705,-500.0,0.00026424,2]
[342072343,1731405043717,-500.0,0.00026424,2]
[342072344,1731405043726,-500.0,0.00026424,2]
[342072346,1731405043736,-223.39,0.00026424,2]
[342072349,1731405043747,-626.41,0.00026424,2]
[342072350,1731405043759,-500.0,0.00026424,2]
[342072353,1731405043769,-500.0,0.00026424,2]
[342072355,1731405043778,-501.19,0.00026424,2]
[342072357,1731405043788,-1030.17,0.00026424,2]
[342072359,1731405043798,-500.0,0.00026424,2]
[342072361,1731405043808,-381.44,0.00026424,2]
[342072363,1731405043818,-500.0,0.00026424,2]
[342072364,1731405043828,-500.0,0.00026424,2]
[342072366,1731405043838,-635.9,0.00026424,2]
[342072368,1731405043849,-646.61,0.00026424,2]
[342072370,1731405043858,-500.0,0.00026424,2]
[342072371,1731405043869,-500.0,0.00026424,2]
[342072374,1731405043880,-500.0,0.00026424,2]
[342072377,1731405043890,-500.0,0.00026424,2]
[342072380,1731405043899,-500.0,0.00026424,2]
[342072383,1731405043909,-500.0,0.00026425,2]
[342072384,1731405043918,-500.0,0.00026425,2]
[342072387,1731405043928,-525.69,0.00026425,2]
[342072390,1731405043938,-558.1111214,0.00026425,2]
[342072393,1731405043947,-1343.47683898,0.00026437,2]
[342072395,1731405043956,-500.0,0.00026438,2]
[342072398,1731405043972,-500.0,0.00026438,2]
[342072400,1731405043981,-525.25,0.00026438,2]
[342072402,1731405043991,-500.0,0.00026438,2]
[342072404,1731405044001,-500.0,0.00026438,2]
[342072406,1731405044011,-500.0,0.00026438,2]
[342072408,1731405044021,-500.0,0.00026438,2]
[342072410,1731405044031,-500.0,0.00026438,2]
[342072412,1731405044041,-500.0,0.00026438,2]
[342072413,1731405044050,-500.0,0.00026438,2]
[342072414,1731405044059,-1096.48,0.00026438,2]
[342072416,1731405044069,-500.0,0.00026438,2]
[342072417,1731405044079,-500.0,0.00026438,2]
[342072418,1731405044089,-560.32,0.00026438,15]
[342072419,1731405044099,-500.0,0.00026438,2]
[342072420,1731405044108,-500.0,0.00026438,2]
[342072421,1731405044118,-500.0,0.00026438,2]
[342072422,1731405044127,-735.12215912,0.0002654,2]
[342072423,1731405044137,-166.666666,0.00026626,2]
[342072424,1731405044146,-500.0,0.00026687,2]
[342072425,1731405044155,-212.02,0.00026687,2]
[342072426,1731405044165,-1723.73,0.00026687,2]
[342072427,1731405044175,-494.89,0.00026687,2]
[342072428,1731405044184,-3661.9,0.00026687,2]
[342072429,1731405044194,-500.0,0.00026687,2]
[342072430,1731405044204,-349.54,0.00026698,2]
[342072431,1731405044217,-195.35,0.00026698,2]
[342072432,1731405044226,-500.0,0.00026698,2]
[342072433,1731405044236,-500.0,0.00026698,2]
[342072434,1731405044245,-500.0,0.00026698,2]
[342072435,1731405044254,-1030.17,0.00026698,2]
[342072436,1731405044263,-500.0,0.00026698,2]
[342072437,1731405044273,-419.08,0.00026698,2]
[342072438,1731405044282,-500.0,0.00026698,2]
[342072440,1731405044292,-203.87,0.00026698,2]
[342072442,1731405044301,-163.54,0.00026698,2]
[342072443,1731405044311,-500.0,0.00026698,2]
[342072444,1731405044321,-159.24,0.00026698,2]
[342072446,1731405044330,-500.0,0.00026698,2]
[342072448,1731405044340,-500.0,0.00026699,2]
[342072450,1731405044349,-500.0,0.00026699,2]
[342072452,1731405044359,-525.69,0.00026699,2]
[342072454,1731405044369,-5048.73649767,0.00026711,2]
[342072455,1731405044378,-525.25,0.00026712,2]
[342072456,1731405044388,-500.0,0.00026712,2]